Cogmind - Beta 11 X8 @@@ ROGUE MODE // 2021.10.25 @ 22:02:21 Player: Runia Result: Destroyed by D-53 Grenadier with Mini Grenade Launcher Performance ------------- Evolutions (0) 0 Regions Visited (2) 400 Robots Destroyed (25) 125 Value Destroyed (571) 571 Prototype IDs (0) 0 Alien Tech Used (0) 0 Bonus (0) 0 TOTAL SCORE: 1096 Bonus ------- None Cogmind --------- Core Integrity 0/250 Matter 239/300 Energy 45/100 System Corruption 2% Temperature Cool (48) Movement Core (350) Ox6 Location -10/Mines Parts ------- > --- POWER (1) -------- (None) > --- PROPULSION (2) --- (None) > --- UTILITY (2) ------ Large Storage Unit > --- WEAPON (2) ------- (None) > --- INVENTORY (15) --- Ion Engine Light Treads Light Treads Structural Scanner Medium Laser Medium Laser Medium Laser Beam Cannon Datajack Peak State ------------ > --- POWER ------------ Ion Engine > --- PROPULSION ------- Aluminum Leg Aluminum Leg > --- UTILITY ---------- Heat Sink Medium Storage Unit > --- WEAPON ----------- Medium Laser Medium Laser > --- INVENTORY -------- Light Ion Engine Light Treads Light Treads Structural Scanner EM Pulse Gun Medium Laser Medium Laser Medium Laser Medium Laser Grenade Launcher [Rating: 8] Favorites ----------- Power Ion Engine Engine Ion Engine Propulsion Aluminum Leg Leg Aluminum Leg Utility Heat Sink Device Heat Sink Storage Large Storage Unit Protection Weapon Shielding Weapon Medium Laser Energy Gun Medium Laser Launcher Grenade Launcher Build | -11 -10 -10 ------- Run | Scr Mat Min Slots Evolved . | . . . Power . | . . . Propulsion . | . . . Utility . | . . . Weapon . | . . . Parts Attached 21 | . 15 6 Power 1 | . 1 . Engine 1 | . 1 . Core . | . . . Reactor . | . . . Propulsion 3 | . 2 1 Treads . | . . . Leg 3 | . 2 1 Wheel . | . . . Hover . | . . . Flight . | . . . Utility 4 | . 3 1 Device 1 | . 1 . Storage 2 | . 2 . Processor . | . . . Hackware . | . . . Protection 1 | . . 1 Artifact . | . . . Weapon 13 | . 9 4 Energy Gun 8 | . 5 3 Energy Cannon . | . . . Ballistic Gun . | . . . Ballistic Cannon . | . . . Launcher 5 | . 4 1 Special Weapon . | . . . Impact Weapon . | . . . Slashing Weapon . | . . . Piercing Weapon . | . . . Special Melee Weapon . | . . . Unidentified Prototypes . | . . . Parts Lost 11 | . 1 10 Power 1 | . . 1 Propulsion 3 | . . 3 Utility 2 | . . 2 Weapon 5 | . 1 4 Highest Loss Streak 10 | . 1 10 Average Slot Usage (%) 97 | . 98 90 Engine 13 | . 14 11 Leg 27 | . 28 25 Device 12 | . 12 12 Storage 14 | . 14 14 Energy Gun 27 | . 27 23 Naked Turns . | . . . Heaviest Build 31 | 14 31 31 Greatest Support 20 | 20 20 20 Greatest Overweight (x) 1 | . 1 1 Average Overweight (x) . | . . 1 Largest Inventory Capacity 15 | 8 15 15 Average Capacity 13 | 8 13 15 Most Carried 13 | 5 13 13 Average Carried 11 | 4 10 12 Final Capacity 15 | 8 15 15 Final Carried 13 | 4 13 9 Class Distribution -------------------- 54% | Scavenger-Mutant 45% | Mutant Dominant Class ---------------- Scavenger-Mutant | -10/Materials Scavenger-Mutant | -10/Mines Resources | -11 -10 -10 ----------- Run | Scr Mat Min Matter Collected 408 | 200 208 . Remotely . | . . . Salvage Created 596 | . 559 37 Parts 39 | . 34 5 Haulers Intercepted 2 | . 2 . Recyclers Shooed 1 | . 1 . Parts Field Recycled . | . . . Retrieved Matter . | . . . Parts Self-Destructed . | . . . Prevented . | . . . Kills | -11 -10 -10 ------- Run | Scr Mat Min Combat Hostiles Destroyed 21 | . 16 5 Guns 8 | . 8 . AOE 13 | . 8 5 Classes Destroyed 7 | . 6 1 Worker 2 | . 2 . Builder 1 | . 1 . Hauler 2 | . 2 . Watcher 2 | . 2 . Swarmer 5 | . 3 2 Grunt 13 | . 13 . Assembled 3 | . . 3 Best Kill Streak 9 | . 9 3 Combat Bots Only 7 | . 7 3 Max Kills in Single Turn 2 | . 2 2 Gunslinging . | . . . Exploded 2 | . 2 2 Melee . | . . . Uniques/NPCs Destroyed . | . . . Combat | -11 -10 -10 -------- Run | Scr Mat Min Damage Taken 1228 | . 398 830 Core 251 | . 64 187 Absorbed by Shields . | . . . Core Remaining (%) 100 | 100 . . Volleys Fired 70 | . 56 14 Largest 2 | . 2 2 Hottest 100 | . 100 100 Shots Fired 127 | . 104 23 Gun 115 | . 96 19 Cannon . | . . . Launcher 12 | . 8 4 Special . | . . . Kinetic . | . . . Thermal 115 | . 96 19 Explosive 12 | . 8 4 Electromagnetic . | . . . Robot Hit Streak 7 | . 7 5 Robot Miss Streak 4 | . 4 4 Penetration Max . | . . . Secondary Targets . | . . . Shots Hit Robots 76 | . 64 12 Core Hits 55 | . 45 10 Critical Kills . | . . . Critical Parts Destroyed . | . . . Critical Strikes 6 | . 6 . Burn 6 | . 6 . Melee Attacks . | . . . Impact . | . . . Slashing . | . . . Piercing . | . . . Sneak Attacks . | . . . Combat Hostiles . | . . . Follow-up Attacks . | . . . Damage Inflicted 2037 | . 1551 486 Guns 874 | . 760 114 Cannons . | . . . Explosions 1159 | . 791 368 Melee . | . . . Ramming 4 | . . 4 Kinetic . | . . . Thermal 874 | . 760 114 Explosive 1159 | . 791 368 Electromagnetic . | . . . Impact . | . . . Slashing . | . . . Piercing . | . . . Highest Corruption 2 | . 2 2 Average Corruption 1 | . 1 2 Corruption Purged . | . . . Effects 9 | . 8 1 Message Errors 3 | . 3 . Energy Discharges 3 | . 3 . Data Loss (minor) 2 | . 2 . Weapon Failures 1 | . . 1 Overload Shots . | . . . Overflow Damage . | . . . Projectiles . | . . . Explosions . | . . . Melee . | . . . Knockbacks . | . . . Impact . | . . . Kinetic . | . . . Secondary . | . . . Self-Inflicted Damage 24 | . 24 . Shots 2 | . 2 . Rammed . | . . . Targets Rammed 2 | . . 2 Kicked 2 | . . 2 Crushed . | . . . Highest Temperature 189 | . 189 63 Average Temperature 49 | . 52 32 Received Heat Transfer 195 | . 195 . Siege Activations . | . . . Robots Corrupted . | . . . Combat Hostiles . | . . . Parts Fried . | . . . Impact Corruptions . | . . . Robots Melted . | . . . Combat Hostiles . | . . . Parts Melted 4 | . 4 . Heat Transferred 3034 | . 2701 333 Parts Sabotaged . | . . . Parts Stolen . | . . . Parts Stripped . | . . . Power Chain Reactions . | . . . Missiles Intercepted . | . . . Alert | -11 -10 -10 ------- Run | Scr Mat Min Peak Influence 318 | . 318 144 Initial 79 | . . 79 Average 169 | . 175 130 Maximum Alert Level 1 | . 1 . Low Security (%) 50 | 100 42 100 Level 1 49 | . 57 . Level 2 . | . . . Level 3 . | . . . Level 4 . | . . . Level 5 . | . . . High Security . | . . . Max Security . | . . . Squads Dispatched 4 | . 4 . Investigation 3 | . 3 . Extermination . | . . . Reinforcement 1 | . 1 . Assault . | . . . Garrison . | . . . Intercept . | . . . Construction Impeded . | . . . Haulers Reinforced . | . . . Active Scanning Responses . | . . . Cargo Convoy Interrupts . | . . . Stealth | -11 -10 -10 --------- Run | Scr Mat Min Distress Signals 2 | . 2 . Communications Jammed . | . . . Distress Signals . | . . . Times Spotted 42 | . 31 11 Peak Tracking Total 6 | . 6 6 Tactical Retreats 1 | . . 1 Traps | -11 -10 -10 ------- Run | Scr Mat Min Traps Triggered 3 | . 3 . Indirectly . | . . . Trap Hack Attempts . | . . . Triggered . | . . . Disarmed . | . . . Reprogrammed . | . . . Reused . | . . . Traps Extracted . | . . . Installed . | . . . Triggered . | . . . Machines | -11 -10 -10 ---------- Run | Scr Mat Min Machines Disabled 1 | . 1 . Max in Single Turn 1 | . 1 . Machines Sabotaged . | . . . Garrisons Compromised . | . . . Overloaded Fab Kills . | . . . Hacking | -11 -10 -10 --------- Run | Scr Mat Min Machines Accessed 6 | . 6 . Terminals 4 | . 4 . Fabricators . | . . . Repair Stations . | . . . Recycling Units 2 | . 2 . Scanalyzers . | . . . Garrison Access . | . . . Total Hacks 17 | . 17 . Successful 10 | . 10 . Failed 7 | . 7 . Catastrophic 2 | . 2 . Database Lockouts . | . . . Manual 6 | . 6 . Terminals 11 | . 11 . Fabricators . | . . . Repair Stations . | . . . Recycling Units 6 | . 6 . Scanalyzers . | . . . Garrison Access . | . . . Terminal Hacks 4 | . 4 . Alert Level 1 | . 1 . Locate Traps 1 | . 1 . Hauler Manifests 1 | . 1 . Zone Layout 1 | . 1 . Fabricator Hacks . | . . . Repair Station Hacks . | . . . Recycling Unit Hacks 3 | . 3 . Report Inventory 2 | . 2 . Retrieve Components 1 | . 1 . Scanalyzer . | . . . Garrison Access Hacks . | . . . Unauthorized Hacks 3 | . 3 . Terminals 1 | . 1 . Assimilate 1 | . 1 . Fabricators . | . . . Repair Stations . | . . . Recycling Units 2 | . 2 . Tunnel 2 | . 2 . Scanalyzers . | . . . Garrison Access . | . . . Data Cores Recovered . | . . . Used . | . . . Hacking Detections 5 | . 5 . Full Trace Events 2 | . 2 . Feedback Events . | . . . Feedback Blocked . | . . . Robot Schematics Acquired . | . . . Robots Built . | . . . Authchips . | . . . Time . | . . . Total Robot Build Rating . | . . . Part Schematics Acquired . | . . . Parts Built . | . . . Authchips . | . . . Time . | . . . Total Part Build Rating . | . . . Parts Repaired . | . . . Time . | . . . Parts Recycled . | . . . Recycled Matter . | . . . Retrieved Matter . | . . . Retrieved Components 1 | . 1 . Parts Scanalyzed . | . . . Part Schematics Acquired . | . . . Parts Damaged . | . . . Bothacking | -11 -10 -10 ------------ Run | Scr Mat Min Used RIF Installer . | . . . Robots Hacked . | . . . Non-combat . | . . . Combat . | . . . Robot Hacks Applied . | . . . Relay Couplers Released . | . . . Robots Rewired . | . . . Allies Hacked . | . . . Hacks Repelled . | . . . Allies | -11 -10 -10 -------- Run | Scr Mat Min Total Allies . | . . . Largest Group . | . . . Highest-Rated Group . | . . . Highest-Rated Ally . | . . . Total Orders . | . . . Ally Attacks . | . . . Total Damage . | . . . Kills . | . . . Allies Corrupted . | . . . Allies Melted . | . . . Intel | -11 -10 -10 ------- Run | Scr Mat Min Robot Analysis Total . | . . . Derelict Logs Recovered . | . . . Drone Launches . | . . . Drone Recoveries . | . . . Exploration | -11 -10 -10 ------------- Run | Scr Mat Min Turns Passed 1131 | 2 970 159 Spaces Moved 522 | 1 463 58 Core . | . . . Treads . | . . . Legs 522 | 1 463 58 Wheels . | . . . Hover . | . . . Flight . | . . . Fastest Speed 120 | 120 120 190 Average Speed 169 | 120 166 190 Slowest Speed 190 | 120 190 190 Overloaded Moves . | . . . Propulsion Burnouts . | . . . Robots Hopped . | . . . Cave-ins Triggered . | . . . Exploration Rate (%) 31 | 2 77 14 Regions Visited 2 Branch Regions 1 Pre-discovered Areas 2 | . 2 . Known Exits Taken . | . . . Unknown Exits Taken 2 | 1 1 . Scrap Searched . | . . . Spaces Dug . | . . . Terrain Destroyed 39 | . 15 24 Melee . | . . . Projectile . | . . . AOE 39 | . 15 24 Terrain Rammed . | . . . Walls Destroyed . | . . . Machines Disabled . | . . . Actions | -11 -10 -10 --------- Run | Scr Mat Min Total 636 | 2 554 80 Wait 3 | . 3 . Move 520 | . 462 58 Hop . | . . . Pick Up 11 | . 11 . Fast Attach 2 | . 2 . Attach 5 | . 1 4 Detach . | . . . Swap 14 | . 12 2 Drop 9 | 2 7 . Fire 70 | . 56 14 Melee . | . . . Ram . | . . . Kick 2 | . . 2 Crush . | . . . Escape Stasis . | . . . Rewire . | . . . Trap . | . . . Miscellaneous . | . . . Route ------- -11/Scrapyard -10/Materials (discovered 3 exits: [*Mat] / [*Min x2]) -10/Mines History --------- Turn | Location | Event 3 | -11/Scrapyard | Discovered new exit (range 0) 3 | -11/Scrapyard | Entered Materials 287 | -10/Materials | Discovered new exit (range 9) 310 | -10/Materials | Build established: Mutant 449 | -10/Materials | Destroyed 7 combat bots 678 | -10/Materials | Discovered new exit (range 6) 782 | -10/Materials | Build established: Scavenger-Mutant 896 | -10/Materials | Discovered new exit (range 15) 973 | -10/Materials | Entered Mines 976 | -10/Mines | Met a Derelict bent on vengeance 1053 | -10/Mines | Assembled infested the area 1104 | -10/Mines | Core integrity fell below 50% 1131 | -10/Mines | Core integrity fell below 20% 1132 | -10/Mines | Destroyed by D-53 Grenadier with Mini Grenade Launcher Last Messages --------------- 01103_ as-32637 destroyed. 01105_ The unstable cave ceiling collapses. 01107_ U-05 Engineer builds a Wall. 01107_ Med. Laser destroyed. 01107_ Kicked U-05 Engineer. 01108_ as-83489 destroyed. 01109_ Kicked U-05 Engineer. 01110_ Aluminum Leg destroyed. 01110_ Heat Sink destroyed. 01112_ as-88383 destroyed. 01112_ U-05 Engineer destroyed. 01112_ Aluminum Leg destroyed. 01114_ as-27753 destroyed. 01116_ The unstable cave ceiling collapses. 01124_ Aluminum Leg destroyed. 01125_ The unstable cave ceiling collapses. 01130_ Med. Laser destroyed. 01132_ The unstable cave ceiling collapses. 01132_ Weapon Shielding destroyed. 01132_ Med. Laser destroyed. Map ----- +----------------------------------------------------+ | | | | | | | | | | | | | | | | | | | | | | | | | | | | | | | | | | | | | ?????????????????????????????????????????????????? | | ?????????????????????????????????????????????????? | | ??????????????????????##?####????????????????????? | | ??????????????######### # ##???????????????????? | | ??????????????# # ##??????????????????? | | ?????????????## #??????????####????? | | ?????????????##[ ###?##????## ####?? | | ?????????????## @ d ## ##???# ### | | ?????????????## % d ####?# # | | ?????????????# r # ### # | | ?????????????# ## #### * # | | ?????????????#### ??## # % # | | ????????????????# #???###### # # #? | | ????????????????# ???????? # #? | | ???????????????? ???????#### ## # #? | | ???????????????# ??????????# # ###??# #? | | ???????????????# ?????????? # % ##???? ? | | ???????????????# ??????????? # # #????? ? | | ??????????????? ?????????? ##? #???? ? | | ???????????????# ?????????? ##?? ##???? ? | | ?????????????????????????? #????# ###???? ## | | ?????????????????????????? #?????## ##?????? #?? | | ????????????????????????? ???????#%#???????#??? | | ????????????????????????? ??????? "#??????????? | | ??????????????????????????????????? #??????????? | | ???????????????????????????????????###???????????? | | ?????????????????????????????????????????????????? | | ?????????????????????????????????????????????????? | | ?????????????????????????????????????????????????? | | ?????????????????????????????????????????????????? | | ?????????????????????????????????????????????????? | | ?????????????????????????????????????????????????? | +----------------------------------------------------+ Best States ------------- Heat Dissipation 35 Energy Generation 10 Energy Capacity 250 Matter Stores 300 Matter Capacity 300 Sight Range 16 Terrain Scan Density 10 Weapon Shielding 33 Evasion (%) 55 Item Schematics ----------------- None Robot Schematics ------------------ None Fabricated ------------ Nothing Alien Tech Used ----------------- None Achievements -------------- None Challenges ------------ None Game ------ Seed MissileBattleDisintegrator Manual? 0 Play Time 00:07:30 Cumulative 405.4 hours Start 2021.10.25 @ 21:55:04 End 2021.10.25 @ 22:02:21 Sessions 1 Manual Loads 0 Difficulty Rogue Special Mode None Game No. 415 Rogue 415 Adventurer 0 Explorer 0 Win Type - Total 7 Types 6/0/0/1/0/0/0/0/0 Lore% 79 Gallery% 91 Achievement% 69 Wizard Run 0 Options --------- ASCII 0 Keyboard 0 Movement Mouse Keybinds 1 Fullscreen 2 Font 24/Smallcaps Map View 76x50 Tactical HUD 1 Map Filters NONE Filters NONE Steam 1 RUN: d4d775be-dc53-4a2c-865c-e899d7c8c795